bitfinex-derivatives/quotes_SOLF0:USTF0_20250215
["timestamp","ask_amount","ask_price","bid_price","bid_amount"]
[1739642822095,10.04507034,194.39,194.33,5.1448]
[1739642822290,14.30306201,194.4,194.33,5.1448]
[1739642822690,14.30306201,194.4,194.3,14.30306201]
[1739642822691,14.30306201,194.4,194.34,5.1447]
[1739642822992,95.5431967,194.43,194.35,0.03426958]
[1739642822993,0.03493269,194.38,194.35,0.03426958]
[1739642824691,0.03493269,194.38,194.35,5.17876958]
[1739642824885,0.03493269,194.38,194.36,1.6209]
[1739642827299,5.144,194.37,194.35,0.03426958]
[1739642828298,0.03493269,194.38,194.35,0.03426958]
[1739642829300,0.03493269,194.38,194.35,5.17876958]
[1739642830296,0.03493269,194.38,194.35,0.03426958]
[1739642830505,0.03493269,194.38,194.37,5.144]
[1739642831495,5.1429,194.42,194.35,0.03426958]
[1739642831696,14.30306201,194.46,194.35,0.03426958]
[1739642831994,14.30306201,194.46,194.34,1.582]
[1739642832201,5.1428,194.42,194.37,5.1438]
[1739642832401,14.30306201,194.46,194.37,5.1438]
[1739642832600,14.30306201,194.46,194.34,1.582]
[1739642832794,14.30306201,194.46,194.4,0.03521796]
[1739642832993,24.34813235,194.49,194.4,0.03521796]
[1739642833395,24.34813235,194.49,194.4,5.17831796]
[1739642833603,24.34813235,194.49,194.4,0.03521796]
[1739642833798,5.1414,194.47,194.41,5.1427]
[1739642834105,14.30306201,194.49,194.4,0.03521796]
[1739642835003,14.30306201,194.49,194.4,1.68171796]
[1739642835412,5.1414,194.47,194.41,5.1429]
[1739642835606,14.30306201,194.49,194.41,5.1429]
[1739642836007,14.30306201,194.49,194.4,1.68171796]
[1739642836208,14.30306201,194.49,194.42,5.1426]
[1739642836411,14.30306201,194.49,194.4,1.68171796]
[1739642836909,14.30306201,194.49,194.41,1.6488]
[1739642837110,5.1414,194.47,194.41,6.7917]
[1739642837307,5.1414,194.47,194.41,1.6488]
[1739642837811,5.1414,194.47,194.42,5.1427]
[1739642838114,5.1417,194.46,194.41,1.6488]
[1739642839014,5.1417,194.46,194.41,6.7917]
[1739642840413,14.30306201,194.49,194.41,6.7917]
[1739642840615,14.30306201,194.49,194.42,5.1427]
[1739642840916,14.30306201,194.55,194.42,14.30306201]
[1739642841116,5.1403,194.52,194.46,5.1416]
[1739642841321,14.30306201,194.55,194.47,0.03484156]
[1739642841713,9.14177436,194.49,194.47,0.03484156]
[1739642842118,5.1411,194.48,194.47,0.03484156]
[1739642842819,9.14177436,194.49,194.47,0.03484156]
[1739642844116,14.28267436,194.49,194.47,0.03484156]
[1739642844717,9.14177436,194.49,194.47,0.03484156]
[1739642845519,14.28277436,194.49,194.47,0.03484156]
[1739642845720,5.141,194.49,194.47,0.03484156]
[1739642847421,5.1411,194.48,194.47,0.03484156]
[1739642849521,14.28450369,194.52,194.47,0.03484156]
[1739642849722,5.141,194.49,194.47,0.03484156]
[1739642850227,14.28450369,194.52,194.47,0.03484156]
[1739642850824,5.1411,194.48,194.47,0.03484156]
[1739642851019,14.28450369,194.49,194.47,0.03484156]
[1739642851325,129.78450369,194.58,194.47,0.03484156]
[1739642851525,129.78450369,194.58,194.49,5.1406]
[1739642851827,129.78450369,194.58,194.46,14.28450369]
[1739642852126,129.78450369,194.58,194.52,0.03721863]
[1739642852326,5.1392,194.56,194.52,0.03721863]
[1739642852522,129.78450369,194.58,194.52,0.03721863]
[1739642852724,14.28450369,194.58,194.52,0.03721863]
[1739642853423,19.42300369,194.58,194.52,0.03721863]
[1739642853626,14.28450369,194.58,194.52,0.03721863]
[1739642853929,5.1388,194.57,194.52,0.03721863]
[1739642856231,5.139,194.56,194.52,0.03721863]
[1739642857429,14.28450369,194.58,194.52,0.03721863]
[1739642858027,5.1393,194.55,194.52,0.03721863]
[1739642859529,14.28450369,194.58,194.52,0.03721863]
[1739642859831,5.1396,194.54,194.52,0.03721863]
[1739642861730,14.28450369,194.58,194.52,0.03721863]
[1739642862329,5.1397,194.54,194.52,0.03721863]
[1739642863835,5.1398,194.53,194.52,0.03721863]
[1739642871639,14.27622746,194.53,194.52,0.03721863]
[1739642873637,5.1405,194.51,194.45,14.27822746]
[1739642873831,9.13642746,194.5,194.45,14.27822746]
[1739642874743,0.03278338,194.49,194.46,5.17892919]
[1739642877744,5.17368338,194.49,194.46,5.17892919]
[1739642877949,5.17368338,194.49,194.46,0.03742919]
[1739642878648,9.13642746,194.48,194.46,0.03742919]
[1739642878848,0.03278338,194.49,194.46,0.03742919]
[1739642879950,0.03278338,194.49,194.46,5.17882919]
[1739642881045,0.03278338,194.49,194.46,0.03742919]
[1739642882956,0.03278338,194.49,194.47,3.49783873]
[1739642883156,5.17368338,194.49,194.46,0.03742919]
[1739642883454,9.13642746,194.48,194.46,0.03742919]
[1739642883855,14.27752746,194.48,194.46,0.03742919]
[1739642884157,9.13642746,194.48,194.46,0.03742919]
[1739642884656,5.1414,194.47,194.46,0.03742919]
[1739642889559,5.1426,194.43,194.38,5.1437]
[1739642889761,9.13642746,194.42,194.39,8.36328349]
[1739642890057,9.13642746,194.42,194.4,3.50126744]
[1739642890258,9.13642746,194.42,194.35,9.13642746]
[1739642890557,9.13642746,194.4,194.37,3.50058947]
[1739642890758,9.13642746,194.4,194.38,3.50058947]
[1739642890957,9.13642746,194.4,194.39,3.50058947]
[1739642892162,0.03691503,194.41,194.39,8.64408947]
[1739642892362,0.03691503,194.41,194.39,5.1435]
[1739642894259,0.03691503,194.41,194.37,9.17284689]
[1739642894464,0.03691503,194.41,194.38,3.49646586]
[1739642894660,0.03691503,194.41,194.37,5.18041943]
[1739642894860,0.03691503,194.41,194.38,3.49655441]
[1739642895064,5.17991503,194.41,194.37,0.03641943]
[1739642895265,5.17991503,194.41,194.38,3.4963793]
[1739642895466,5.17991503,194.41,194.37,0.03641943]
[1739642895661,5.17991503,194.41,194.38,3.4956061]
[1739642895864,5.17991503,194.41,194.37,5.18031943]
[1739642896063,5.17991503,194.41,194.38,3.49560606]
[1739642896266,5.17991503,194.41,194.37,5.18031943]
[1739642896469,5.17991503,194.41,194.38,3.49474415]
[1739642896665,5.17991503,194.41,194.37,5.18031943]
[1739642896864,5.17991503,194.41,194.38,3.49474415]
[1739642897064,5.17991503,194.41,194.37,5.18031943]
[1739642897670,5.17991503,194.41,194.38,3.49394476]
[1739642897964,0.03691503,194.41,194.38,5.1437]
[1739642898167,0.03691503,194.41,194.37,9.17284689]
[1739642898869,0.03691503,194.41,194.39,5.1432]
[1739642899263,0.03691503,194.41,194.4,5.1432]
[1739642900460,0.03691503,194.41,194.39,14.27992746]
[1739642901169,0.03691503,194.41,194.39,9.13642746]
[1739642901370,0.03691503,194.41,194.4,5.1432]
[1739642903476,0.03691503,194.41,194.4,8.63375048]
[1739642907778,9.13642746,194.48,194.4,3.49055048]
[1739642907978,5.141,194.49,194.43,9.13642746]
[1739642908980,0.03901028,194.48,194.44,0.03719879]
[1739642909174,0.03901028,194.48,194.45,5.1416]
[1739642914780,5.18011028,194.48,194.44,5.17929879]
[1739642915083,9.17543774,194.48,194.44,0.03719879]
[1739642915485,5.1414,194.47,194.44,0.03719879]
[1739642916690,14.31663774,194.48,194.44,5.17929879]
[1739642918989,5.1414,194.47,194.44,0.03719879]
[1739642919385,9.17543774,194.48,194.44,0.03719879]
[1739642919591,9.17543774,194.48,194.44,5.17929879]
[1739642919592,14.31653774,194.48,194.44,5.17929879]
[1739642920089,9.17543774,194.48,194.44,5.17929879]
[1739642920287,0.03901028,194.48,194.45,12.63379805]
[1739642920487,0.03901028,194.48,194.46,3.49737059]
[1739642920687,0.03901028,194.48,194.45,9.13642746]
[1739642920987,0.03901028,194.48,194.46,3.49699028]
[1739642921183,0.03901028,194.48,194.45,9.13642746]
[1739642921485,0.03901028,194.48,194.46,3.49714076]
[1739642921689,0.03901028,194.48,194.46,5.1414]
[1739642922091,0.03901028,194.48,194.45,9.13642746]
[1739642922292,0.03901028,194.48,194.46,3.4971008]
[1739642922491,0.03901028,194.48,194.46,5.1416]
[1739642922789,0.03901028,194.48,194.45,9.13642746]
[1739642923094,0.03901028,194.48,194.46,8.63892719]
[1739642923294,0.03901028,194.48,194.46,5.1416]
[1739642924791,0.03901028,194.48,194.47,3.49727055]
[1739642925888,0.03901028,194.48,194.47,8.63867055]
[1739642926697,0.03901028,194.48,194.47,17.77509801]
[1739642927191,0.03901028,194.48,194.47,8.63867055]
[1739642930091,0.03901028,194.48,194.47,3.49727055]
[1739642930799,0.03901028,194.48,194.47,8.63867055]
[1739642931394,0.03901028,194.48,194.47,3.49727055]
[1739642931596,5.18011028,194.48,194.47,3.49727055]
[1739642932300,5.18011028,194.48,194.46,1.6316]
[1739642932598,0.03901028,194.48,194.46,1.6316]
[1739642933199,0.03901028,194.48,194.46,6.7732]
[1739642934904,0.03901028,194.48,194.47,5.1414]
[1739642935103,0.03901028,194.48,194.47,8.63384364]
[1739642935503,0.03901028,194.48,194.47,8.63375675]
[1739642937101,0.03901028,194.48,194.47,8.63501643]
[1739642940511,0.03901028,194.48,194.47,8.63425411]
[1739642942112,0.03901028,194.48,194.47,3.49285411]
[1739642942411,0.03901028,194.48,194.46,6.7732]
[1739642942608,0.03901028,194.48,194.46,1.6316]
[1739642942809,0.03901028,194.48,194.47,5.1414]
[1739642944514,0.03901028,194.48,194.47,8.63440242]
[1739642945816,0.03901028,194.48,194.47,3.49300242]
[1739642948711,14.31653774,194.48,194.47,3.49300242]
[1739642948916,9.17543774,194.48,194.44,0.03719879]
[1739642949115,9.13642746,194.46,194.45,3.49783894]
[1739642950521,9.13642746,194.46,194.45,3.49803633]
[1739642951020,9.13642746,194.46,194.45,3.49801675]
[1739642952522,0.03901028,194.48,194.45,3.49856981]
[1739642952824,0.03901028,194.48,194.46,3.49856981]
[1739642953022,0.03901028,194.48,194.44,0.03719879]
[1739642953222,0.03901028,194.48,194.45,3.49846179]
[1739642953432,0.03901028,194.48,194.46,8.63986179]
[1739642953619,0.03901028,194.48,194.44,0.03719879]
[1739642953922,0.03901028,194.48,194.45,3.49858403]
[1739642954124,0.03901028,194.48,194.46,3.49858403]
[1739642954421,0.03901028,194.48,194.44,0.03719879]
[1739642954622,0.03901028,194.48,194.45,3.49901547]
[1739642954921,0.03901028,194.48,194.46,3.49901547]
[1739642955121,0.03901028,194.48,194.44,0.03719879]
[1739642955324,0.03901028,194.48,194.45,3.49942638]
[1739642955523,0.03901028,194.48,194.46,3.49942638]
[1739642955719,0.03901028,194.48,194.44,0.03719879]
[1739642955921,0.03901028,194.48,194.45,3.49962368]
[1739642956215,0.03901028,194.48,194.46,3.49962368]
[1739642956420,0.03901028,194.48,194.44,0.03719879]
[1739642956623,0.03901028,194.48,194.45,3.49978142]
[1739642956823,0.03901028,194.48,194.46,3.49978142]
[1739642957123,0.03901028,194.48,194.46,5.1414]
[1739642958227,0.03901028,194.48,194.45,5.1418]
[1739642958423,0.03901028,194.48,194.46,3.50159155]
[1739642958622,0.03901028,194.48,194.45,5.1418]
[1739642958825,0.03901028,194.48,194.46,3.50237294]
[1739642959025,0.03901028,194.48,194.45,5.1418]
[1739642959328,9.17543774,194.48,194.46,3.50265683]
[1739642959529,9.17543774,194.48,194.44,5.17929879]
[1739642959824,9.17543774,194.48,194.45,3.50324764]
[1739642960024,9.17543774,194.48,194.46,3.50324764]
[1739642960222,9.17543774,194.48,194.44,5.17929879]
[1739642960426,9.17543774,194.48,194.45,3.50375259]
[1739642960627,9.17543774,194.48,194.46,3.50384811]
[1739642960827,9.17543774,194.48,194.44,5.17929879]
[1739642961030,9.17543774,194.48,194.45,3.50384968]
[1739642961225,9.17543774,194.48,194.46,3.50384968]
[1739642961530,94.63455382,194.56,194.47,9.13642746]
[1739642961732,94.63455382,194.56,194.48,3.50330229]
[1739642961923,5.14,194.53,194.49,3.50330229]
[1739642962129,9.13642746,194.52,194.47,5.1412]
[1739642962324,9.13642746,194.52,194.48,3.50236381]
[1739642962631,14.27652746,194.52,194.49,3.50236381]
[1739642962832,14.27652746,194.52,194.48,0.03614541]
[1739642963031,14.27652746,194.52,194.49,3.50285701]
[1739642963226,9.13642746,194.5,194.48,0.03614541]
[1739642964533,5.1408,194.49,194.48,0.03614541]
[1739642966929,9.13642746,194.5,194.48,3.54054038]
[1739642967135,9.13642746,194.5,194.48,0.03614541]
[1739642967636,14.27702746,194.5,194.48,0.03614541]
[1739642968036,9.13642746,194.5,194.48,0.03614541]
[1739642970435,5.1408,194.49,194.48,0.03614541]
[1739642970634,5.1408,194.49,194.48,3.5405701]
[1739642971538,9.13642746,194.5,194.48,3.5405701]
[1739642971729,9.13642746,194.5,194.48,0.03614541]
[1739642972427,5.1408,194.49,194.48,0.03614541]
[1739642974137,14.27722746,194.5,194.48,0.03614541]
[1739642974641,9.13642746,194.5,194.48,0.03614541]
[1739642978641,5.1403,194.51,194.48,0.03614541]
[1739642979449,9.13642746,194.52,194.48,0.03614541]
[1739642979741,5.14,194.53,194.48,5.17714541]
[1739642980538,5.1401,194.52,194.48,5.17714541]
[1739642981444,5.1401,194.52,194.48,0.03614541]
[1739642982742,5.1404,194.51,194.48,0.03614541]
[1739642985348,9.13642746,194.52,194.48,0.03614541]
[1739642985547,5.1404,194.51,194.48,0.03614541]
[1739642985948,5.1406,194.5,194.48,0.03614541]
[1739642986549,9.13642746,194.52,194.48,0.03614541]
[1739642987050,9.13642746,194.52,194.49,3.50228599]
[1739642987349,14.27672746,194.52,194.48,5.17724541]
[1739642987551,14.27672746,194.52,194.49,3.50239173]
[1739642987749,14.27672746,194.52,194.48,5.17724541]
[1739642988651,9.13642746,194.52,194.48,0.03614541]
[1739642988849,5.1404,194.51,194.48,0.03614541]
[1739642990154,5.1404,194.51,194.49,3.50259948]
[1739642990351,5.1404,194.51,194.48,0.03614541]
[1739642990551,5.1404,194.51,194.49,3.50258831]
[1739642990749,5.1404,194.51,194.48,0.03614541]
[1739642991051,5.1404,194.51,194.49,3.5025925]
[1739642991350,5.1404,194.51,194.48,0.03614541]
[1739642991550,5.1404,194.51,194.49,3.50265583]
[1739642991745,5.1404,194.51,194.48,0.03614541]
[1739642991950,5.1404,194.51,194.49,3.50402361]
[1739642992143,5.1404,194.51,194.48,0.03614541]
[1739642992345,5.1404,194.51,194.49,3.50407547]
[1739642992548,5.1404,194.51,194.48,0.03614541]
[1739642992749,5.1404,194.51,194.49,3.50457443]
[1739642992949,5.1404,194.51,194.48,0.03614541]
[1739642993150,5.1404,194.51,194.49,3.50532697]
[1739642993351,9.13642746,194.52,194.48,0.03614541]
[1739642993751,14.27722746,194.5,194.48,0.03614541]
[1739642994256,9.13642746,194.5,194.48,0.03614541]
[1739642994457,5.1408,194.49,194.48,0.03614541]
[1739642994655,5.1408,194.49,194.48,3.54206593]
[1739642994852,5.1408,194.49,194.48,0.03614541]
[1739642997357,9.13642746,194.5,194.41,1.5439]
[1739642997554,9.13642746,194.46,194.42,3.50810501]
[1739642997754,9.13642746,194.46,194.43,3.50810501]
[1739642997950,9.13642746,194.46,194.44,3.50810501]
[1739642998155,9.13642746,194.46,194.41,10.68032746]
[1739642998359,9.13642746,194.46,194.42,3.50741079]
[1739642998556,0.03791437,194.45,194.43,3.50741079]
[1739642998860,0.03791437,194.45,194.44,3.50683929]
[1739642999264,0.03791437,194.45,194.42,5.17871172]
[1739642999559,0.03791437,194.45,194.43,3.50636997]
[1739642999756,0.03791437,194.45,194.44,3.50636997]
[1739642999962,0.03791437,194.45,194.42,0.03631172]
[1739643000157,0.03791437,194.45,194.43,3.50676281]
[1739643000355,0.03791437,194.45,194.42,0.03631172]
[1739643000556,14.27862746,194.44,194.43,3.50677345]
[1739643000761,9.13642746,194.44,194.42,0.03631172]
[1739643001160,0.03791437,194.45,194.42,0.03631172]
[1739643002268,5.17991437,194.45,194.42,0.03631172]
[1739643002759,0.03791437,194.45,194.42,0.03631172]
[1739643002960,5.1424,194.43,194.42,0.03631172]
[1739643006867,5.1439,194.38,194.33,14.28152746]
[1739643007066,5.1439,194.38,194.34,3.50241952]
[1739643007267,5.1439,194.38,194.35,3.50241952]
[1739643007463,5.1439,194.38,194.36,3.50241952]
[1739643007668,5.1439,194.38,194.33,14.28152746]
[1739643007871,0.0393961,194.37,194.34,3.53378847]
[1739643008073,0.0393961,194.37,194.35,3.50108713]
[1739643008273,0.0393961,194.37,194.36,3.50108713]
[1739643008667,0.0393961,194.37,194.36,8.64538713]
[1739643009569,0.0393961,194.37,194.36,3.50108713]
[1739643011271,0.0393961,194.37,194.34,5.17750134]
[1739643011467,0.0393961,194.37,194.34,5.17740134]
[1739643011773,0.0393961,194.37,194.35,3.49679179]
[1739643011975,0.0393961,194.37,194.34,0.03270134]
[1739643012569,0.0393961,194.37,194.35,3.49560435]
[1739643012769,0.0393961,194.37,194.34,5.17730134]
[1739643012968,0.0393961,194.37,194.35,3.49558837]
[1739643013170,0.0393961,194.37,194.34,5.17730134]
[1739643013368,0.0393961,194.37,194.35,3.49474668]
[1739643013572,0.0393961,194.37,194.34,5.17730134]
[1739643013774,0.0393961,194.37,194.35,12.63117414]
[1739643014071,0.0393961,194.37,194.35,9.13642746]
[1739643016077,0.0393961,194.37,194.35,14.28072746]
[1739643016877,0.0393961,194.37,194.36,5.1443]
[1739643018376,0.0393961,194.37,194.35,14.28092746]
[1739643019078,0.0393961,194.37,194.34,0.03270134]
[1739643020380,5.1445,194.35,194.34,0.03270134]
[1739643023782,5.1459,194.3,194.25,9.13642746]
[1739643023977,9.13642746,194.32,194.26,3.49072975]
[1739643024173,9.13642746,194.32,194.27,3.49013867]
[1739643024377,14.28182746,194.32,194.28,3.49013867]
[1739643024678,14.28182746,194.32,194.27,5.1464]
[1739643024979,0.03933606,194.31,194.28,3.52337327]
[1739643025172,0.03933606,194.31,194.29,9.13642746]
[1739643025377,0.03933606,194.31,194.3,3.4870844]
[1739643026082,0.03933606,194.31,194.3,5.1459]
[1739643027386,194.6309,194.43,194.33,5.145]
[1739643027387,5.1442,194.37,194.33,5.145]
[1739643027986,5.1442,194.37,194.32,14.28152746]
[1739643028590,0.03347437,194.36,194.33,0.03945114]
[1739643030081,0.03347437,194.36,194.34,5.1448]
[1739643030787,0.03347437,194.36,194.33,0.03945114]
[1739643030988,0.03347437,194.36,194.33,5.18445114]
[1739643031388,0.03347437,194.36,194.33,0.03945114]
[1739643034392,0.03347437,194.36,194.34,5.1447]
[1739643034684,0.03347437,194.36,194.33,0.03945114]
[1739643038089,0.03347437,194.36,194.34,5.1447]
[1739643039794,0.03347437,194.36,194.33,0.03945114]
[1739643039989,0.03347437,194.36,194.33,5.18445114]
[1739643041192,0.03347437,194.36,194.34,3.49589451]
[1739643041392,0.03347437,194.36,194.33,5.18445114]
[1739643041592,0.03347437,194.36,194.34,3.49579739]
[1739643041789,0.03347437,194.36,194.33,5.18445114]
[1739643041994,0.03347437,194.36,194.34,3.49553617]
[1739643042195,0.03347437,194.36,194.33,5.18445114]
[1739643042396,0.03347437,194.36,194.34,3.49699604]
[1739643042695,0.03347437,194.36,194.34,5.1447]
[1739643042994,0.03347437,194.36,194.33,0.03945114]
[1739643043198,0.03347437,194.36,194.34,3.49659665]
[1739643043396,0.03347437,194.36,194.35,3.49659665]
[1739643046700,0.03347437,194.36,194.35,8.64109665]
[1739643048101,0.03347437,194.36,194.35,8.64530421]
[1739643053703,5.143,194.41,194.35,3.50080421]
[1739643053904,5.143,194.41,194.37,5.1438]
[1739643054505,9.13642746,194.42,194.37,5.1438]
[1739643054805,14.27922746,194.42,194.37,5.1438]
[1739643055005,0.0336125,194.41,194.38,3.53711832]
[1739643055207,0.0336125,194.41,194.38,0.03531343]
[1739643056007,0.0336125,194.41,194.38,5.17901343]
[1739643057609,0.0336125,194.41,194.38,0.03531343]
[1739643057810,5.1766125,194.41,194.38,0.03531343]
[1739643059706,0.0336125,194.41,194.38,5.17901343]
[1739643060103,0.0336125,194.41,194.39,3.50195166]
[1739643060303,0.0336125,194.41,194.38,0.03531343]
[1739643060503,0.0336125,194.41,194.39,3.50162331]
[1739643060707,0.0336125,194.41,194.38,0.03531343]
[1739643060909,0.0336125,194.41,194.39,3.50156456]
[1739643061106,0.0336125,194.41,194.38,5.17901343]
[1739643061306,0.0336125,194.41,194.39,3.5013523]
[1739643061512,0.0336125,194.41,194.38,5.17901343]
[1739643061714,0.0336125,194.41,194.39,3.50110559]
[1739643061914,0.0336125,194.41,194.38,14.31544089]
[1739643062117,0.0336125,194.41,194.39,3.50043109]
[1739643062318,0.0336125,194.41,194.38,14.31544089]
[1739643062516,0.0336125,194.41,194.39,3.5000513]
[1739643062815,0.0336125,194.41,194.38,14.31544089]
[1739643063016,0.0336125,194.41,194.39,3.50004985]
[1739643063224,0.0336125,194.41,194.38,9.17174089]
[1739643063517,0.0336125,194.41,194.39,3.50012809]
[1739643063719,0.0336125,194.41,194.38,14.31544089]
[1739643064018,0.0336125,194.41,194.39,3.50014086]
[1739643064220,0.0336125,194.41,194.38,14.31544089]
[1739643064407,0.0336125,194.41,194.39,3.50064461]
[1739643064611,0.0336125,194.41,194.38,14.31544089]
[1739643064806,0.0336125,194.41,194.39,3.50004615]
[1739643065016,0.0336125,194.41,194.38,14.31544089]
[1739643065315,0.0336125,194.41,194.39,3.5000222]
[1739643065518,0.0336125,194.41,194.38,14.31544089]
[1739643065817,0.0336125,194.41,194.39,3.49948777]
[1739643066118,0.0336125,194.41,194.4,14.27962746]
[1739643066413,5.1418,194.46,194.4,12.63577204]
[1739643066615,5.1418,194.46,194.42,14.27892746]
[1739643066919,5.1411,194.48,194.42,9.13642746]
[1739643067107,5.1411,194.48,194.43,3.49692109]
[1739643067308,5.1411,194.48,194.43,5.1424]
[1739643067816,5.1411,194.48,194.44,0.03277543]
[1739643068217,14.27752746,194.48,194.44,0.03277543]
[1739643068517,9.13642746,194.46,194.44,0.03277543]
[1739643068817,5.1419,194.45,194.44,0.03277543]
[1739643070012,5.1419,194.45,194.25,24.13402313]
[1739643070013,9.13642746,194.46,194.34,52.77751642]
[1739643070214,9.13642746,194.38,194.36,3.4950919]
[1739643070413,9.13642746,194.38,194.34,43.64108896]
[1739643070414,9.13642746,194.38,194.37,3.4950919]
[1739643070918,9.13642746,194.38,194.34,48.78588896]
[1739643071114,9.13642746,194.38,194.35,3.4967511]
[1739643071314,9.13642746,194.38,194.36,3.53093673]
[1739643071618,0.03530668,194.39,194.36,0.03418563]
[1739643072211,0.03530668,194.39,194.37,3.49697608]
[1739643072412,0.03530668,194.39,194.36,0.03418563]
[1739643072716,0.03530668,194.39,194.37,3.49711081]
[1739643073016,0.03530668,194.39,194.36,0.03418563]
[1739643073217,0.03530668,194.39,194.37,3.49709244]
[1739643073415,0.03530668,194.39,194.36,0.03418563]
[1739643074119,5.17880668,194.39,194.36,0.03418563]
[1739643074619,5.17880668,194.39,194.37,3.49725413]
[1739643074918,5.17880668,194.39,194.36,0.03418563]
[1739643075120,5.17880668,194.39,194.37,3.49737642]
[1739643075417,0.03530668,194.39,194.36,5.17848563]
[1739643075617,0.03530668,194.39,194.37,3.49774281]
[1739643075817,0.03530668,194.39,194.36,5.17848563]
[1739643076019,0.03530668,194.39,194.37,3.49774136]
[1739643076219,0.03530668,194.39,194.38,14.28012746]
[1739643076720,0.03530668,194.39,194.38,17.77725908]
[1739643077521,14.27822746,194.46,194.4,5.1431]
[1739643077721,9.13642746,194.46,194.41,12.632472]
[1739643077921,9.13642746,194.46,194.41,9.13642746]
[1739643078327,9.13642746,194.46,194.42,5.1427]
[1739643078521,9.13642746,194.46,194.41,9.13642746]
[1739643078716,9.13642746,194.46,194.42,0.0359996]
[1739643078918,14.27832746,194.46,194.42,0.0359996]
[1739643081619,9.13642746,194.46,194.42,0.0359996]
[1739643081826,5.1419,194.45,194.42,0.0359996]
[1739643082219,9.13642746,194.44,194.42,0.0359996]
[1739643082820,5.1424,194.43,194.42,0.0359996]
[1739643084527,5.1422,194.44,194.42,0.0359996]
[1739643086021,14.27832746,194.46,194.42,0.0359996]
[1739643086734,5.1419,194.45,194.42,0.0359996]
[1739643087339,9.13642746,194.46,194.42,0.0359996]
[1739643088137,14.27822746,194.46,194.42,0.0359996]
[1739643088636,9.13642746,194.46,194.42,0.0359996]
[1739643090737,5.1424,194.44,194.42,0.0359996]
[1739643090937,9.13642746,194.44,194.42,0.0359996]
[1739643091340,5.1424,194.43,194.42,9.96e-05]
[1739643093841,9.13642746,194.44,194.34,3.50129993]
[1739643094134,9.13642746,194.36,194.35,3.50129993]
[1739643094541,9.13642746,194.36,194.29,10.64692746]
[1739643094744,14.28092746,194.36,194.3,8.64829237]
[1739643095039,0.03612162,194.35,194.31,3.53514367]
[1739643095240,0.03612162,194.35,194.32,3.50249237]
[1739643095435,0.03612162,194.35,194.33,3.50249237]
[1739643095640,0.03612162,194.35,194.34,3.50169932]
[1739643098835,0.03612162,194.35,194.31,9.16907876]
[1739643099035,0.03612162,194.35,194.32,3.50072355]
[1739643099340,0.03612162,194.35,194.33,3.50072355]
[1739643099545,0.03612162,194.35,194.31,9.16907876]
[1739643099842,0.03612162,194.35,194.32,3.50030428]
[1739643100039,0.03612162,194.35,194.33,3.50030428]
[1739643100335,0.03612162,194.35,194.31,14.31467876]
[1739643100541,0.03612162,194.35,194.32,3.49974513]
[1739643100744,0.03612162,194.35,194.33,3.49974513]
[1739643101537,0.03612162,194.35,194.31,14.31467876]
[1739643102043,0.03612162,194.35,194.32,8.64505133]
[1739643102243,0.03612162,194.35,194.32,5.1453]
[1739643103046,0.03612162,194.35,194.33,3.49915758]
[1739643103247,5.1448,194.34,194.33,3.49915758]
[1739643103843,5.18072162,194.35,194.33,3.49915758]
[1739643104146,5.18072162,194.35,194.31,0.0326513]
[1739643104547,5.18072162,194.35,194.31,5.1782513]
[1739643104941,5.18072162,194.35,194.32,3.49932831]
[1739643105344,5.18072162,194.35,194.31,9.16907876]
[1739643105847,5.18072162,194.35,194.32,3.49833716]
[1739643106048,5.18072162,194.35,194.31,9.16907876]
[1739643106345,5.18072162,194.35,194.31,14.31457876]
[1739643106548,5.18072162,194.35,194.32,3.49740115]
[1739643106744,0.03612162,194.35,194.33,9.13642746]
[1739643108448,0.03612162,194.35,194.33,14.28142746]
[1739643108642,9.13642746,194.42,194.34,3.49479514]
[1739643108848,9.13642746,194.42,194.37,14.28042746]
[1739643109041,14.27932746,194.42,194.37,14.28042746]
[1739643109448,9.13642746,194.44,194.37,14.28042746]
[1739643109647,5.1425,194.43,194.37,14.28042746]
[1739643109848,5.1425,194.43,194.39,0.03745521]
[1739643110546,9.13642746,194.44,194.39,0.03745521]
[1739643111051,9.13642746,194.44,194.39,9.17388267]
[1739643111741,9.13642746,194.44,194.39,0.03745521]
[1739643112743,9.13642746,194.42,194.39,0.03745521]
[1739643113245,5.1432,194.4,194.39,0.03745521]
[1739643114948,14.27962746,194.4,194.39,0.03745521]
[1739643115145,14.27962746,194.4,194.39,5.521e-05]
[1739643116148,9.13642746,194.4,194.32,3.49699297]
[1739643116350,5.1449,194.34,194.29,10.64692746]
[1739643116542,5.1449,194.34,194.3,3.49675908]
[1739643116741,5.1449,194.34,194.31,3.49675908]
[1739643116945,5.1449,194.34,194.32,3.49675908]
[1739643117151,5.1449,194.34,194.29,15.79302746]
[1739643117450,9.13642746,194.33,194.31,0.03864124]
[1739643118645,5.1453,194.32,194.31,0.03864124]
[1739643119253,9.13642746,194.33,194.31,0.03864124]
[1739643119454,14.28152746,194.33,194.31,0.03864124]
[1739643119656,9.13642746,194.33,194.31,0.03864124]